Workbook

Sheet Data Input
B3: CCIM Office Gap Analysis | H3: =NOW() -> 2024-12-17T10:11:58.410
B5: Market Area | E5: Market Area Employment Sector | F5: % Office Using | H5: # Office Employees
E6: ='U.S. Office Employment'!A288 -> Wholesale trade | F6: ='U.S. Office Employment'!F288 -> 0.1076657079 | H6: ='Business Summary'!D22*F6 -> 0
E7: ='U.S. Office Employment'!A348 -> Retail trade | F7: ='U.S. Office Employment'!F348 -> 0.03300874099 | H7: ='Business Summary'!D26*F7 -> 0
B8: Market Area Supply Data | E8: ='U.S. Office Employment'!A423 -> Transportation and warehousing | F8: ='U.S. Office Employment'!F423 -> 0.1785078052 | H8: ='Business Summary'!D37*F8 -> 0
B9: Current Total Supply (RSF) | E9: ='U.S. Office Employment'!A472 -> Information | F9: ='U.S. Office Employment'!F472 -> 0.9121768842 | H9: ='Business Summary'!D39*F9 -> 0
B10: Current Overall Vacancy Supply (RSF) | E10: ='U.S. Office Employment'!A501 -> Finance and insurance | F10: ='U.S. Office Employment'!F501 -> 1 | H10: ='Business Summary'!D40*F10 -> 0
B11: New Supply in Construction Pipeline (RSF) | E11: ='U.S. Office Employment'!A539 -> Real estate and rental and leasing | F11: ='U.S. Office Employment'!F539 -> 0.8448428253 | H11: ='Business Summary'!D44*F11 -> 0
B12: Stabilized Vacancy Rate % | E12: ='U.S. Office Employment'!A565 -> Professional and business services | F12: ='U.S. Office Employment'!F565 -> 0.9434973707 | H12: ='Business Summary'!D45*F12 -> 0
E13: ='U.S. Office Employment'!A616 -> Management of companies and enterprises | F13: ='U.S. Office Employment'!F616 -> 1.000428733 | H13: ='Business Summary'!D47*F13 -> 0
B14: Market Area Forecast Data | E14: ='U.S. Office Employment'!A620 -> Administrative and support services | F14: ='U.S. Office Employment'!F619 -> 0.6279857627 | H14: ='Business Summary'!D48*F14 -> 0
B15: Forecast Period (Months) | E15: ='U.S. Office Employment'!A666 -> Private educational services | F15: ='U.S. Office Employment'!F666 -> 0.1065556926 | H15: ='Business Summary'!D49*F15 -> 0
B16: Economic Base Multiplier | E16: ='U.S. Office Employment'!A678 -> Health care and social assistance | F16: ='U.S. Office Employment'!F678 -> 0.2435441234 | H16: ='Business Summary'!D53*F16 -> 0
B17: Forecast Annual Employment Growth Rate | C17: ='Executive Summary'!C17 -> 0 | E17: ='U.S. Office Employment'!A779 -> Other services | F17: ='U.S. Office Employment'!F779 -> 0.4861113456 | H17: ='Business Summary'!D62*F17 -> 0
B18: Forecast Basic Employment Change | C18: =('Business Summary'!D112*(1+C17)^(C15/12)*(1/C16))-('Business Summary'!D112*(1/C16)) ->  | E18: ='U.S. Office Employment'!A828 -> Government | F18: ='U.S. Office Employment'!F828 -> 0.3318369783 | H18: ='Business Summary'!D67*F18 -> 0
B19: Forecast Total Office Using Employment | C19: =F19*((C18*C16))+H19 ->  | E19: Current Total Office Using Employment | F19: =H19/'Business Summary'!D112 -> 0 | H19: =SUM(H6:H18) -> 0

Sheet U.S. Office Employment (hidden)
A1: Office Using Employment Estimate (updated October 2024)
A2: Industry | B2: NAICS Code | C2: Total Employment (x1,000) | D2: Office Using? "X"=Yes | E2: # of Office Workers | F2: % of Office Workers
A3: Mining and logging | C3: 638 | E3: =IF(D3="x",C3,0) -> 0
A4: Logging | B4: 1133 | C4: 38.2 | E4: 0
A5: Mining, quarrying, and oil and gas extraction | B5: 21 | C5: 599.3 | E5: 0
A6: Oil and gas extraction | B6: 211 | C6: 119.6 | E6: 0
A7: Mining (except oil and gas) | B7: 212 | C7: 189.3 | E7: 0
A8: Coal mining | B8: 2121 | C8: 42.8 | E8: 0
A9: Surface coal mining(1) | B9: 212114 | C9: 18.6 | E9: 0
A10: Underground coal mining(1) | B10: 212115 | C10: 24.2 | E10: 0
A11: Metal ore mining | B11: 2122 | C11: 43.6 | E11: 0
A12: Nonmetallic mineral mining and quarrying | B12: 2123 | C12: 102.9 | E12: 0
A13: Stone mining and quarrying(1) | B13: 21231 | C13: 45.6 | E13: 0
A14: Crushed and broken limestone mining and quarrying(1) | B14: 212312 | C14: 23.5 | E14: 0
A15: Dimension stone, crushed and broken granite, and other crushed and broken stone mining and quarrying(1) | B15: 212311,3,9 | C15: 22 | E15: 0
A16: Sand, gravel, clay, and ceramic and refractory minerals mining and quarrying(1) | B16: 21232 | C16: 44.3 | E16: 0
A17: Construction sand and gravel mining(1) | B17: 212321 | C17: 29.4 | E17: 0
A18: Other nonmetallic mineral mining and quarrying(1) | B18: 21239 | C18: 13 | E18: 0
A19: Support activities for mining | B19: 213 | C19: 290.4 | E19: 0
A20: Support activities for oil and gas operations(1) | B20: 213112 | C20: 228.8 | E20: 0
E21: 0
A22: Construction | B22: 23 | C22: 8303 | E22: 0
A23: Construction of buildings | B23: 236 | C23: 1883.8 | E23: 0
A24: Residential building construction | B24: 2361 | C24: 956.2 | E24: 0
A25: New single-family housing construction (except for-sale builders) | B25: 236115 | C25: 389 | E25: 0
A26: New multifamily housing construction (except for-sale builders) | B26: 236116 | C26: 48.1 | E26: 0
A27: New housing for-sale builders | B27: 236117 | C27: 55.5 | E27: 0
A28: Residential remodelers | B28: 236118 | C28: 463.7 | E28: 0
A29: Nonresidential building construction | B29: 2362 | C29: 927.6 | E29: 0
A30: Industrial building construction | B30: 23621 | C30: 170.8 | E30: 0
A31: Commercial and institutional building construction | B31: 23622 | C31: 756.8 | E31: 0
A32: Heavy and civil engineering construction | B32: 237 | C32: 1159.8 | E32: 0
A33: Utility system construction(1) | B33: 2371 | C33: 596.9 | E33: 0
A34: Water and sewer line and related structures construction(1) | B34: 23711 | C34: 208.5 | E34: 0
A35: Oil and gas pipeline and related structures construction(1) | B35: 23712 | C35: 149.3 | E35: 0
A36: Power and communication line and related structures construction(1) | B36: 23713 | C36: 239.1 | E36: 0
A37: Land subdivision(1) | B37: 2372 | C37: 40.1 | E37: 0
A38: Highway, street, and bridge construction(1) | B38: 2373 | C38: 386.2 | E38: 0
A39: Other heavy and civil engineering construction(1) | B39: 2379 | C39: 135.2 | E39: 0
A40: Specialty trade contractors | B40: 238 | C40: 5259.4 | E40: 0
A41: Residential specialty trade contractors | B41: part 238 | C41: 2414.5 | E41: 0
A42: Nonresidential specialty trade contractors | B42: part 238 | C42: 2844.9 | E42: 0
A43: Foundation, structure, and building exterior contractors(1) | B43: 2381 | C43: 999.8 | E43: 0
A44: Poured concrete foundation and structure contractors | B44: 23811 | C44: 249.3 | E44: 0
A45: Structural steel and precast concrete contractors | B45: 23812 | C45: 81.9 | E45: 0
A46: Framing contractors | B46: 23813 | C46: 81.3 | E46: 0
A47: Masonry contractors | B47: 23814 | C47: 152.5 | E47: 0
A48: Glass and glazing contractors | B48: 23815 | C48: 74 | E48: 0
A49: Roofing contractors | B49: 23816 | C49: 255.9 | E49: 0
A50: Siding contractors | B50: 23817 | C50: 41 | E50: 0
A51: Other foundation, structure, and building exterior contractors | B51: 23819 | C51: 64.6 | E51: 0
A52: Building equipment contractors(1) | B52: 2382 | C52: 2593.3 | E52: 0
A53: Electrical contractors and other wiring installation contractors | B53: 23821 | C53: 1115.6 | E53: 0
A54: Plumbing, heating, and air-conditioning contractors | B54: 23822 | C54: 1316 | E54: 0
A55: Other building equipment contractors | B55: 23829 | C55: 161.5 | E55: 0
A56: Building finishing contractors(1) | B56: 2383 | C56: 841.4 | E56: 0
A57: Drywall and insulation contractors | B57: 23831 | C57: 244 | E57: 0
A58: Painting and wall covering contractors | B58: 23832 | C58: 210.7 | E58: 0
A59: Flooring contractors | B59: 23833 | C59: 78.7 | E59: 0
A60: Tile and terrazzo contractors | B60: 23834 | C60: 49.8 | E60: 0
A61: Finish carpentry contractors | B61: 23835 | C61: 167.6 | E61: =IF(D61="x",C61,0) -> 0
A62: Other building finishing contractors | B62: 23839 | C62: 89.7 | E62: 0
A63: Other specialty trade contractors(1) | B63: 2389 | C63: 824.9 | E63: 0
A64: Site preparation contractors | B64: 23891 | C64: 414.2 | E64: 0
A65: All other specialty trade contractors | B65: 23899 | C65: 411.2 | E65: 0
E66: 0
A67: Manufacturing | C67: 12865 | E67: 0
E68: 0
A69: Durable goods | C69: 8052 | E69: 0
A70: Wood product manufacturing | B70: 321 | C70: 412.8 | E70: 0
A71: Sawmills and wood preservation(1) | B71: 3211 | C71: 87.5 | E71: 0
A72: Veneer, plywood, and engineered wood product manufacturing(1) | B72: 3212 | C72: 81 | E72: 0
A73: Other wood product manufacturing(1) | B73: 3219 | C73: 244 | E73: 0
A74: Millwork(1) | B74: 32191 | C74: 101.9 | E74: 0
A75: Wood window and door manufacturing(1) | B75: 321911 | C75: 56.5 | E75: 0
A76: Cut stock, resawing lumber, planing, and other millwork (including flooring)(1) | B76: 321912,8 | C76: 45.4 | E76: 0
A77: Wood container and pallet manufacturing(1) | B77: 32192 | C77: 64.7 | E77: 0
A78: All other wood product manufacturing(1) | B78: 32199 | C78: 77.2 | E78: 0
A79: Nonmetallic mineral product manufacturing | B79: 327 | C79: 428.2 | E79: 0
A80: Clay product and refractory manufacturing(1) | B80: 3271 | C80: 35.5 | E80: 0
A81: Glass and glass product manufacturing(1) | B81: 3272 | C81: 78.2 | E81: 0
A82: Cement and concrete product manufacturing(1) | B82: 3273 | C82: 209.5 | E82: 0
A83: Ready-mix concrete manufacturing(1) | B83: 32732 | C83: 107.5 | E83: 0
A84: Cement and concrete pipe, brick, block, and other concrete product manufacturing(1) | B84: 32731,3,9 | C84: 102.1 | E84: 0
A85: Lime, gypsum, and other nonmetallic mineral product manufacturing(1) | B85: 3274,9 | C85: 105.1 | E85: 0
A86: Primary metal manufacturing | B86: 331 | C86: 371 | E86: 0
A87: Iron and steel mills and ferroalloy manufacturing(1) | B87: 3311 | C87: 79.6 | E87: 0
A88: Steel product manufacturing from purchased steel(1) | B88: 3312 | C88: 59.7 | E88: 0
A89: Alumina, aluminum, and other nonferrous metal production and processing(1) | B89: 3313,4 | C89: 123.2 | E89: 0
A90: Foundries(1) | B90: 3315 | C90: 108.8 | E90: 0
A91: Ferrous metal foundries(1) | B91: 33151 | C91: 54.5 | E91: 0
A92: Nonferrous metal foundries(1) | B92: 33152 | C92: 54 | E92: 0
A93: Fabricated metal product manufacturing | B93: 332 | C93: 1456.3 | E93: 0
A94: Forging and stamping(1) | B94: 3321 | C94: 89.5 | E94: 0
A95: Architectural and structural metals manufacturing(1) | B95: 3323 | C95: 425.3 | E95: 0
A96: Plate work and fabricated structural product manufacturing(1) | B96: 33231 | C96: 195 | E96: 0
A97: Fabricated structural metal manufacturing(1) | B97: 332312 | C97: 104.6 | E97: 0
A98: Plate work and prefabricated metal building and component manufacturing(1) | B98: 332311,3 | C98: 90.5 | E98: 0
A99: Ornamental and architectural metal products manufacturing(1) | B99: 33232 | C99: 230.9 | E99: 0
A100: Metal window and door manufacturing(1) | B100: 332321 | C100: 68.7 | E100: 0
A101: Sheet metal work manufacturing(1) | B101: 332322 | C101: 119 | E101: 0
A102: Ornamental and architectural metal work manufacturing(1) | B102: 332323 | C102: 43.1 | E102: 0
A103: Boiler, tank, and shipping container manufacturing(1) | B103: 3324 | C103: 98 | E103: 0
A104: Hardware, spring, and wire product manufacturing(1) | B104: 3325,6 | C104: 63.5 | E104: 0
A105: Machine shops; turned product; and screw, nut, and bolt manufacturing(1) | B105: 3327 | C105: 331.7 | E105: 0
A106: Machine shops(1) | B106: 33271 | C106: 258.3 | E106: 0
A107: Turned product and screw, nut, and bolt manufacturing(1) | B107: 33272 | C107: 73.3 | E107: 0
A108: Coating, engraving, heat treating, and allied activities(1) | B108: 3328 | C108: 128.9 | E108: 0
A109: Metal heat treating, coating, engraving (except jewelry and silverware), and allied services to manufacturers(1) | B109: 332811,2 | C109: 76.2 | E109: 0
A110: Electroplating, plating, polishing, anodizing, and coloring(1) | B110: 332813 | C110: 52.9 | E110: 0
A111: Cutlery, handtool, and other fabricated metal product manufacturing(1) | B111: 3329 | C111: 318.9 | E111: 0
A112: Metal valve manufacturing(1) | B112: 33291 | C112: 91.6 | E112: 0
A113: Fluid power valve and hose fitting manufacturing(1) | B113: 332912 | C113: 38 | E113: 0
A114: Industrial valve, plumbing fixture fitting and trim, and other metal valve and pipe fitting manufacturing(1) | B114: 332911,3,9 | C114: 53.5 | E114: 0
A115: Cutlery, handtool, and all other fabricated metal product manufacturing(1) | B115: 33299 | C115: 227.5 | E115: 0
A116: Small arms, ammunition, and other ordnance and ordnance accessories manufacturing(1) | B116: 332992,3,4 | C116: 54.7 | E116: 0
A117: Cutlery, handtool, ball and roller bearing, fabricated pipe, pipe fitting, and all other fabricated metal product manufacturing(1) | B117: 332200;991,9 | C117: 172.9 | E117: 0
A118: Machinery manufacturing | B118: 333 | C118: 1132 | E118: 0
A119: Agriculture, construction, and mining machinery manufacturing(1) | B119: 3331 | C119: 217.2 | E119: 0
A120: Agricultural implement manufacturing(1) | B120: 33311 | C120: 84 | E120: 0
A121: Construction machinery manufacturing(1) | B121: 33312 | C121: 74.3 | E121: 0
A122: Mining and oil and gas field machinery manufacturing(1) | B122: 33313 | C122: 59.2 | E122: 0
A123: Industrial machinery manufacturing(1) | B123: 3332 | C123: 133.4 | E123: 0
A124: All other industrial machinery manufacturing(1) | B124: 333248 | C124: 70.9 | E124: 0
A125: Commercial and service industry machinery manufacturing(1) | B125: 3333 | C125: 92.2 | E125: =IF(D125="x",C125,0) -> 0
A126: Ventilation, heating, air-conditioning, and commercial refrigeration equipment manufacturing(1) | B126: 3334 | C126: 156.6 | E126: 0
A127: Air-conditioning and warm air heating equipment and commercial and industrial refrigeration equipment manufacturing(1) | B127: 333415 | C127: 101.6 | E127: 0
A128: Metalworking machinery manufacturing(1) | B128: 3335 | C128: 157.5 | E128: 0
A129: Special die and tool, die set, jig, and fixture manufacturing(1) | B129: 333514 | C129: 51.9 | E129: 0
A130: Machine tool manufacturing(1) | B130: 333517 | C130: 41.8 | E130: 0
A131: Industrial mold, cutting tool and machine tool accessory, rolling mill, and other metalworking machinery manufacturing(1) | B131: 333511,5,9 | C131: 63.9 | E131: 0
A132: Engine, turbine, and power transmission equipment manufacturing(1) | B132: 3336 | C132: 93.4 | E132: 0
A133: Other general purpose machinery manufacturing(1) | B133: 3339 | C133: 280.9 | E133: 0
A134: Pump and compressor manufacturing(1) | B134: 33391 | C134: 48.7 | E134: 0
A135: Material handling equipment manufacturing(1) | B135: 33392 | C135: 95.1 | E135: 0
A136: All other general purpose machinery manufacturing(1) | B136: 33399 | C136: 136.9 | E136: 0
A137: Computer and electronic product manufacturing | B137: 334 | C137: 1093.2 | E137: 0
A138: Computer and peripheral equipment manufacturing | B138: 3341 | C138: 159.5 | E138: 0
A139: Communications equipment manufacturing | B139: 3342 | C139: 84.4 | E139: 0
A140: Radio and television broadcasting and wireless communications equipment manufacturing(1) | B140: 33422 | C140: 50.7 | E140: 0
A141: Semiconductor and other electronic component manufacturing | B141: 3344 | C141: 387.6 | E141: 0
A142: Bare printed circuit board manufacturing(1) | B142: 334412 | C142: 27 | E142: 0
A143: Semiconductor and related device manufacturing(1) | B143: 334413 | C143: 194.2 | E143: 0
A144: Printed electronic circuit assembly manufacturing(1) | B144: 334418 | C144: 61.4 | E144: 0
A145: Capacitor, resistor, coil, transformer, other inductor, electronic connector, and other electronic component manufacturing(1) | B145: 334416,7,9 | C145: 104.8 | E145: 0
A146: Navigational, measuring, electromedical, and control instruments manufacturing | B146: 3345 | C146: 430.9 | E146: 0
A147: Electromedical and electrotherapeutic apparatus manufacturing(1) | B147: 334510 | C147: 74.4 | E147: 0
A148: Search, detection, navigation, guidance, aeronautical, and nautical system and instrument manufacturing(1) | B148: 334511 | C148: 132.2 | E148: 0
A149: Instruments and related products manufacturing for measuring, displaying, and controlling industrial process variables(1) | B149: 334513 | C149: 57.9 | E149: 0
A150: Instrument manufacturing for measuring and testing electricity and electrical signals(1) | B150: 334515 | C150: 37 | E150: 0
A151: Miscellaneous electronic instruments manufacturing(1) | B151: 334512,4,6-9 | C151: 128.9 | E151: 0
A152: Manufacturing and reproducing magnetic and optical media and audio and video equipment manufacturing | B152: 3343,6 | C152: 30.7 | E152: 0
A153: Electrical equipment, appliance, and component manufacturing | B153: 335 | C153: 403.4 | E153: 0
A154: Electric lighting equipment manufacturing(1) | B154: 3351 | C154: 34.3 | E154: 0
A155: Household appliance manufacturing(1) | B155: 3352 | C155: 61.3 | E155: 0
A156: Electrical equipment manufacturing(1) | B156: 3353 | C156: 147.7 | E156: 0
A157: Power, distribution, and specialty transformer manufacturing(1) | B157: 335311 | C157: 32.3 | E157: 0
A158: Motor, generator, switchgear and switchboard apparatus, and relay and industrial control manufacturing(1) | B158: 335312,3,4 | C158: 115.2 | E158: 0
A159: Other electrical equipment and component manufacturing(1) | B159: 3359 | C159: 160 | E159: 0
A160: Battery manufacturing(1) | B160: 33591 | C160: 50.3 | E160: 0
A161: Wiring device manufacturing(1) | B161: 33593 | C161: 40.4 | E161: 0
A162: Communication and energy wire and cable and all other electrical equipment and component manufacturing(1) | B162: 33592,9 | C162: 69.4 | E162: 0
A163: Transportation equipment manufacturing | B163: 336 | C163: 1796.6 | E163: 0
A164: Motor vehicles and parts(1)(2) | B164: 3361,2,3 | C164: 1059.5 | E164: 0
A165: Motor vehicle manufacturing(1) | B165: 3361 | C165: 312 | E165: 0
A166: Motor vehicle body and trailer manufacturing(1) | B166: 3362 | C166: 175.5 | E166: 0
A167: Motor vehicle parts manufacturing(1) | B167: 3363 | C167: 574.4 | E167: 0
A168: Motor vehicle gasoline engine and engine parts manufacturing(1) | B168: 33631 | C168: 57.6 | E168: 0
A169: Motor vehicle electrical and electronic equipment manufacturing(1) | B169: 33632 | C169: 60 | E169: 0
A170: Motor vehicle steering and suspension components, except spring, manufacturing(1) | B170: 33633 | C170: 33.3 | E170: 0
A171: Motor vehicle transmission and power train parts manufacturing(1) | B171: 33635 | C171: 85.4 | E171: 0
A172: Motor vehicle metal stamping(1) | B172: 33637 | C172: 85.2 | E172: 0
A173: Motor vehicle brake system, seating, interior trim, and other motor vehicle parts manufacturing(1) | B173: 33634,6,9 | C173: 253.6 | E173: 0
A174: Aerospace product and parts manufacturing(1) | B174: 3364 | C174: 519.3 | E174: 0
A175: Aircraft manufacturing(1) | B175: 336411 | C175: 216.9 | E175: 0
A176: Aircraft engine and engine parts manufacturing(1) | B176: 336412 | C176: 90.6 | E176: 0
A177: Other aircraft parts and auxiliary equipment manufacturing(1) | B177: 336413 | C177: 103.9 | E177: 0
A178: Guided missile; space vehicle; and guided missile and space vehicle propulsion unit, parts, and auxiliary equipment manufacturing(1) | B178: 336414,5,9 | C178: 107.5 | E178: 0
A179: Ship and boat building(1) | B179: 3366 | C179: 151.2 | E179: 0
A180: Ship building and repairing(1) | B180: 336611 | C180: 109.2 | E180: 0
A181: Boat building(1) | B181: 336612 | C181: 42 | E181: 0
A182: Railroad rolling stock and other transportation equipment manufacturing(1) | B182: 3365,9 | C182: 67.9 | E182: 0
A183: Furniture and related product manufacturing | B183: 337 | C183: 339.6 | E183: 0
A184: Household and institutional furniture and kitchen cabinet manufacturing(1) | B184: 3371 | C184: 217.9 | E184: 0
A185: Wood kitchen cabinet and countertop manufacturing(1) | B185: 33711 | C185: 116.6 | E185: 0
A186: Household and institutional furniture manufacturing(1) | B186: 33712 | C186: 101.6 | E186: 0
A187: Upholstered household furniture manufacturing(1) | B187: 337121 | C187: 44.7 | E187: 0
A188: Nonupholstered household furniture and institutional furniture manufacturing(1) | B188: 337122,6,7 | C188: 56.8 | E188: 0
A189: Office furniture (including fixtures) and other furniture related product manufacturing(1) | B189: 3372 | C189: 121 | E189: =IF(D189="x",C189,0) -> 0
A190: Office furniture and custom architectural woodwork and millwork manufacturing(1) | B190: 337211,2,4 | C190: 60 | E190: 0
A191: Showcase, partition, shelving, locker, and other furniture related product manufacturing(1) | B191: 337215 | C191: 61.1 | E191: 0
A192: Miscellaneous manufacturing | B192: 339 | C192: 618.8 | E192: 0
A193: Medical equipment and supplies manufacturing(1) | B193: 3391 | C193: 330.4 | E193: 0
A194: Surgical and medical instrument manufacturing(1) | B194: 339112 | C194: 143.9 | E194: 0
A195: Surgical appliance and supplies manufacturing(1) | B195: 339113 | C195: 104.5 | E195: 0
A196: Dental laboratories(1) | B196: 339116 | C196: 41.7 | E196: 0
A197: Other miscellaneous manufacturing(1) | B197: 3399 | C197: 288.6 | E197: 0
A198: Jewelry, silverware, and sporting and athletic goods manufacturing(1) | B198: 33991,2 | C198: 65.5 | E198: 0
A199: Sign manufacturing(1) | B199: 33995 | C199: 76.2 | E199: 0
A200: Doll, toy, game, office supplies (except paper), and all other miscellaneous manufacturing(1) | B200: 33993,4,9 | C200: 147.5 | E200: 0
... 648 more rows

Sheet Business Summary
A106: Other Services | B106: 10281 | C106: 0.2392 | D106: 100042 | E106: 0.2178
A108: Government | B108: 397 | C108: 0.0092 | D108: 13016 | E108: 0.0283
A110: Unclassified Establishments | B110: 4493 | C110: 0.1045 | D110: 410 | E110: 0.0283
A112: Totals | B112: 42985 | C112: 100.0% | D112: 459303 | E112: 100.0%
A114: Source: Copyright 2024 Data Axle, Inc. All rights reserved. Esri Total Population forecasts for 2024.
A116: Date Note: Data on the Business Summary report is calculated using | E116: Esri’s Data allocation method | G116: which uses census block groups to allocate business summary data to custom areas.
A118: ©2024 Esri

Sheet Executive Summary

Sheet Gap Analysis
B1: CCIM Office Gap Analysis
B2: ='Data Input'!B6:C6 -> 0
B3: Forecast Period: | C3: ='Data Input'!C15 -> 0 | D3: Months
B5: Current Market Conditions | E5: ='Data Input'!H3 -> 2024-12-17T10:11:58.410
B6: Current Office Employment | E6: ='Data Input'!H19 -> 0
B7: Office Space per Employee (RSF) | E7: =E8/E6 -> 
B8: Current Office Demand (RSF) | E8: ='Data Input'!C9-'Data Input'!C10 -> 0
B9: Current Office Supply (RSF) | E9: ='Data Input'!C9 -> 0
B10: Current Office Gap (RSF) | E10: =E8-E9 -> 0
B11: Current Occupancy Rate | E11: =1-'Data Input'!C10/'Data Input'!C9 -> 
B13: Forecast Market Conditions | E13: ='Data Input'!H3+('Data Input'!C15*30.25) -> 2024-12-17T10:11:58.410
B14: Forecast Office Employment | E14: ='Data Input'!C19 -> 
B15: Office Space per Employee (RSF) | E15: =E16/E14 -> 
B16: Forecast Office Demand (RSF) | E16: =E14*(E8/E6) -> 
B17: Forecast Office Supply (RSF) | E17: ='Data Input'!C9+'Data Input'!C11 -> 0
B18: Forecast Office Gap (RSF) | E18: =E16-E17 -> 
B19: Forecast Occupancy Rate | E19: =IF(E18<0,1+E18/E17,1) -> 
B21: Forecast Market Stabilization
B22: Targeted Stabilized Occupancy Rate | E22: =1-'Data Input'!C12 -> 1
B23: Forecast Annual Absorption (RSF) | E23: =(E16-E8)/('Data Input'!C15/12) -> 
B24: Additional Months to Reach Stabilized Occupancy | E24: =IF(E22>E19,(((E22-E19)*E17)/E23)*12,0) -> 
B25: Forecast Stabilization Date | E25: =IF(E24>0,E13+(E24*30.25),"Not Applicable") -> 
